[Event "*** Titled Tuesday Blitz"]
[Site "Chess.com"]
[Date "2018.05.01"]
[Round "8"]
[White "tomsishere"]
[Black "Kouzari"]
[Result "0-1"]
[WhiteElo "2362"]
[BlackElo "2628"]
[TimeControl "180+2"]
[EndTime "14:50:05 PDT"]
[Termination "Kouzari won by resignation"]

1. d4 {[%clk 0:03:01.9]} 1... Nf6 {[%clk 0:03:00.1]} 2. c4 {[%clk 0:03:02.3]}
2... e6 {[%clk 0:03:01.9]} 3. Nc3 {[%clk 0:03:02.7]} 3... Bb4 {[%clk 0:03:03.1]}
4. Qc2 {[%clk 0:03:03.7]} 4... d5 {[%clk 0:03:01.9]} 5. cxd5 {[%clk 0:03:03.8]}
5... Qxd5 {[%clk 0:03:01.6]} 6. Nf3 {[%clk 0:03:04.1]} 6... O-O {[%clk
0:03:01.1]} 7. Bd2 {[%clk 0:02:57.1]} 7... Bxc3 {[%clk 0:03:00.6]} 8. Bxc3
{[%clk 0:02:57.5]} 8... b6 {[%clk 0:03:01.5]} 9. g3 {[%clk 0:02:32.7]} 9... Bb7
{[%clk 0:02:59.8]} 10. Bg2 {[%clk 0:02:33.9]} 10... Qh5 {[%clk 0:02:52.2]} 11.
O-O {[%clk 0:02:32.2]} 11... Be4 {[%clk 0:02:49.8]} 12. Qd2 {[%clk 0:02:26.2]}
12... Nbd7 {[%clk 0:02:50.6]} 13. Qf4 {[%clk 0:02:26]} 13... Rac8 {[%clk
0:02:48.1]} 14. Rac1 {[%clk 0:02:20.7]} 14... Qd5 {[%clk 0:02:47.9]} 15. a3
{[%clk 0:02:17.3]} 15... a5 {[%clk 0:02:48.1]} 16. Rfd1 {[%clk 0:02:15.4]} 16...
h6 {[%clk 0:02:46.9]} 17. Ne1 {[%clk 0:02:13.9]} 17... Bxg2 {[%clk 0:02:36.2]}
18. Nxg2 {[%clk 0:02:14.3]} 18... Qb7 {[%clk 0:02:36.7]} 19. f3 {[%clk
0:02:11.5]} 19... Nd5 {[%clk 0:02:35.9]} 20. Qd2 {[%clk 0:02:09.8]} 20... Rfd8
{[%clk 0:02:36.5]} 21. e4 {[%clk 0:02:08.8]} 21... Nxc3 {[%clk 0:02:34.7]} 22.
Rxc3 {[%clk 0:02:06.4]} 22... Nf6 {[%clk 0:02:34.7]} 23. Ne3 {[%clk 0:02:00.7]}
23... Rd7 {[%clk 0:02:26.9]} 24. Rd3 {[%clk 0:01:58.7]} 24... Rcd8 {[%clk
0:02:27.9]} 25. d5 {[%clk 0:01:56.6]} 25... exd5 {[%clk 0:02:28.3]} 26. Nxd5
{[%clk 0:01:51.1]} 26... Nxd5 {[%clk 0:02:28.9]} 27. exd5 {[%clk 0:01:48.4]}
27... Rd6 {[%clk 0:02:29.3]} 28. Kg2 {[%clk 0:01:43.1]} 28... R8d7 {[%clk
0:02:30.2]} 29. Qe3 {[%clk 0:01:33.4]} 29... Qc8 {[%clk 0:02:27.7]} 30. Qe5
{[%clk 0:01:30.7]} 30... Qd8 {[%clk 0:02:28.1]} 31. Rd4 {[%clk 0:00:56.2]} 31...
Re7 {[%clk 0:02:12.8]} 32. Qf5 {[%clk 0:00:49]} 32... Re2+ {[%clk 0:02:12.4]}
33. Kh3 {[%clk 0:00:42.1]} 33... g6 {[%clk 0:02:04.5]} 34. Qf4 {[%clk
0:00:36.2]} 34... h5 {[%clk 0:01:47.8]} 35. Re4 {[%clk 0:00:31.4]} 35... Qd7+
{[%clk 0:01:46.4]} 36. g4 {[%clk 0:00:26.8]} 36... hxg4+ {[%clk 0:01:46]} 37.
fxg4 {[%clk 0:00:26.7]} 37... Rxb2 {[%clk 0:01:03.6]} 38. Rde1 {[%clk
0:00:26.9]} 38... Rxd5 {[%clk 0:01:04]} 39. Re8+ {[%clk 0:00:19.7]} 39... Kg7
{[%clk 0:01:04.7]} 40. R1e3 {[%clk 0:00:18]} 40... Qd6 {[%clk 0:00:50.1]} 41.
R8e5 {[%clk 0:00:11.1]} 41... Rxe5 {[%clk 0:00:50.1]} 42. Rxe5 {[%clk 0:00:12]}
42... Rb5 {[%clk 0:00:38.6]} 43. Re4 {[%clk 0:00:07.6]} 43... Qxf4 {[%clk
0:00:39]} 44. Rxf4 {[%clk 0:00:08.7]} 44... Rb3+ {[%clk 0:00:38.8]} 45. Kh4
{[%clk 0:00:09.5]} 45... Rxa3 {[%clk 0:00:38.1]} 46. Rc4 {[%clk 0:00:09.3]}
46... c5 {[%clk 0:00:37.9]} 47. g5 {[%clk 0:00:10.5]} 47... Rb3 {[%clk
0:00:38.8]} 0-1

[Event "*** Titled Tuesday Blitz"]
[Site "Chess.com"]
[Date "2018.05.01"]
[Round "8"]
[White "Flawless2018"]
[Black "MatthewG-p4p"]
[Result "1-0"]
[WhiteElo "2501"]
[BlackElo "2578"]
[TimeControl "180+2"]
[EndTime "14:50:08 PDT"]
[Termination "Flawless2018 won by resignation"]

1. d4 {[%clk 0:02:59.6]} 1... Nf6 {[%clk 0:03:00.3]} 2. c4 {[%clk 0:03:00.3]}
2... c5 {[%clk 0:03:00.6]} 3. d5 {[%clk 0:03:01]} 3... e6 {[%clk 0:03:01.5]} 4.
Nc3 {[%clk 0:03:01.7]} 4... exd5 {[%clk 0:03:02.5]} 5. cxd5 {[%clk 0:03:03.6]}
5... d6 {[%clk 0:03:03.4]} 6. Nf3 {[%clk 0:03:04.1]} 6... g6 {[%clk 0:03:02.1]}
7. Bf4 {[%clk 0:03:02.9]} 7... Bg7 {[%clk 0:03:03.1]} 8. e3 {[%clk 0:03:02.1]}
8... O-O {[%clk 0:03:03.8]} 9. h3 {[%clk 0:03:00.9]} 9... Na6 {[%clk 0:03:02.7]}
10. Nd2 {[%clk 0:02:56.1]} 10... Nc7 {[%clk 0:03:00.4]} 11. Nc4 {[%clk
0:02:56.2]} 11... Nfe8 {[%clk 0:03:00.5]} 12. a4 {[%clk 0:02:54.3]} 12... b6
{[%clk 0:03:00]} 13. Be2 {[%clk 0:02:34.4]} 13... Ba6 {[%clk 0:02:59.1]} 14. O-O
{[%clk 0:02:30.4]} 14... Bxc4 {[%clk 0:02:59.9]} 15. Bxc4 {[%clk 0:02:30.9]}
15... a6 {[%clk 0:03:01.5]} 16. Re1 {[%clk 0:02:22.8]} 16... Qd7 {[%clk
0:02:55.5]} 17. e4 {[%clk 0:02:16]} 17... Rb8 {[%clk 0:02:55.4]} 18. Bf1 {[%clk
0:01:29.3]} 18... b5 {[%clk 0:02:55.2]} 19. axb5 {[%clk 0:01:30.3]} 19... axb5
{[%clk 0:02:56.3]} 20. Ra7 {[%clk 0:01:31.2]} 20... Qd8 {[%clk 0:02:56.7]} 21.
Qd2 {[%clk 0:01:20]} 21... b4 {[%clk 0:02:54.4]} 22. Nd1 {[%clk 0:00:55.7]}
22... Nf6 {[%clk 0:02:29.7]} 23. e5 {[%clk 0:00:45.3]} 23... Nfxd5 {[%clk
0:02:20.2]} 24. Bg5 {[%clk 0:00:41.2]} 24... f6 {[%clk 0:02:12.7]} 25. exf6
{[%clk 0:00:32.7]} 25... Nxf6 {[%clk 0:02:09.2]} 26. Bf4 {[%clk 0:00:27.8]}
26... Nfe8 {[%clk 0:02:00.3]} 27. Bc4+ {[%clk 0:00:24.4]} 27... Kh8 {[%clk
0:01:59.1]} 28. Bg5 {[%clk 0:00:24.5]} 28... Bf6 {[%clk 0:01:53.7]} 29. Bh6
{[%clk 0:00:16.3]} 29... Ng7 {[%clk 0:01:54.4]} 30. Ne3 {[%clk 0:00:13.7]} 30...
Bd4 {[%clk 0:01:55.3]} 31. Ng4 {[%clk 0:00:13]} 31... d5 {[%clk 0:01:42.9]} 32.
Bxd5 {[%clk 0:00:11.1]} 32... Qxd5 {[%clk 0:01:16.6]} 33. Rxc7 {[%clk
0:00:11.1]} 33... Rf7 {[%clk 0:01:14.6]} 34. Rxf7 {[%clk 0:00:11.6]} 34... Qxf7
{[%clk 0:01:15]} 35. Ne5 {[%clk 0:00:09.5]} 35... Qd5 {[%clk 0:01:11.9]} 36. Qf4
{[%clk 0:00:08.3]} 36... Rc8 {[%clk 0:01:02.7]} 37. Qf6 {[%clk 0:00:06.6]} 37...
Rc7 {[%clk 0:00:43.8]} 38. Ra1 {[%clk 0:00:02.8]} 38... Bxe5 {[%clk 0:00:42]}
39. Qf8+ {[%clk 0:00:02.3]} 39... Qg8 {[%clk 0:00:42.6]} 40. Ra8 {[%clk
0:00:03.3]} 1-0

[Event "*** Titled Tuesday Blitz"]
[Site "Chess.com"]
[Date "2018.05.01"]
[Round "8"]
[White "tuttocalabria"]
[Black "Kangoroo3000"]
[Result "1-0"]
[WhiteElo "2464"]
[BlackElo "2426"]
[TimeControl "180+2"]
[EndTime "14:50:23 PDT"]
[Termination "tuttocalabria won by resignation"]

1. d4 {[%clk 0:03:01.9]} 1... Nf6 {[%clk 0:03:00.3]} 2. Bg5 {[%clk 0:03:02.2]}
2... d5 {[%clk 0:02:59.8]} 3. Bxf6 {[%clk 0:03:02.5]} 3... gxf6 {[%clk
0:03:01.7]} 4. e3 {[%clk 0:03:02.8]} 4... e6 {[%clk 0:03:01.2]} 5. c4 {[%clk
0:03:03.4]} 5... dxc4 {[%clk 0:03:00.1]} 6. Bxc4 {[%clk 0:03:03.1]} 6... c5
{[%clk 0:03:02]} 7. Nf3 {[%clk 0:03:03.3]} 7... Nc6 {[%clk 0:03:02.3]} 8. O-O
{[%clk 0:03:02.2]} 8... cxd4 {[%clk 0:03:00.6]} 9. exd4 {[%clk 0:03:02]} 9...
Be7 {[%clk 0:02:38.5]} 10. d5 {[%clk 0:02:58.7]} 10... Na5 {[%clk 0:02:13.3]}
11. Bb5+ {[%clk 0:02:55.5]} 11... Bd7 {[%clk 0:01:57.9]} 12. Qa4 {[%clk
0:02:50.1]} 12... Bxb5 {[%clk 0:01:30.7]} 13. Qxb5+ {[%clk 0:02:47.6]} 13... Kf8
{[%clk 0:01:32]} 14. b4 {[%clk 0:02:30.4]} 14... f5 {[%clk 0:01:19.4]} 15. bxa5
{[%clk 0:02:12.9]} 15... Bf6 {[%clk 0:01:19.4]} 16. Qb4+ {[%clk 0:02:08.4]}
16... Qe7 {[%clk 0:01:04.3]} 17. d6 {[%clk 0:02:06.2]} 17... Qd7 {[%clk
0:01:05.4]} 18. Nc3 {[%clk 0:02:06.1]} 18... Rc8 {[%clk 0:01:06]} 19. Rac1
{[%clk 0:02:05.8]} 19... Rc6 {[%clk 0:01:03.6]} 20. Nb5 {[%clk 0:01:47.9]} 20...
a6 {[%clk 0:00:58.2]} 21. Rxc6 {[%clk 0:01:47.4]} 21... bxc6 {[%clk 0:00:57.9]}
22. Nc7 {[%clk 0:01:42.5]} 22... Kg7 {[%clk 0:00:53.7]} 23. Nxa6 {[%clk
0:01:42.6]} 23... Ra8 {[%clk 0:00:52.7]} 24. Nc5 {[%clk 0:01:34.8]} 24... Qxd6
{[%clk 0:00:53.5]} 25. Re1 {[%clk 0:01:27]} 25... Be7 {[%clk 0:00:46.7]} 26.
Qc3+ {[%clk 0:01:21.1]} 26... Bf6 {[%clk 0:00:46.7]} 27. Ne5 {[%clk 0:01:03.9]}
27... Kg8 {[%clk 0:00:21.5]} 28. Qg3+ {[%clk 0:00:57.4]} 28... Bg7 {[%clk
0:00:22.6]} 29. Nb3 {[%clk 0:00:46.1]} 29... Qb4 {[%clk 0:00:14.3]} 30. f4
{[%clk 0:00:44.6]} 30... c5 {[%clk 0:00:13.5]} 31. Rc1 {[%clk 0:00:39.2]} 31...
Rc8 {[%clk 0:00:08.3]} 32. Nc4 {[%clk 0:00:39.4]} 32... h6 {[%clk 0:00:05.3]}
33. h3 {[%clk 0:00:40.5]} 33... Kh7 {[%clk 0:00:06]} 34. Kh2 {[%clk 0:00:41.5]}
34... Ra8 {[%clk 0:00:04.8]} 35. Qd3 {[%clk 0:00:41.5]} 35... Bf6 {[%clk
0:00:04.9]} 36. Rc2 {[%clk 0:00:40.9]} 36... Kg7 {[%clk 0:00:05.8]} 37. Re2
{[%clk 0:00:40.4]} 37... Rd8 {[%clk 0:00:06.9]} 38. Qg3+ {[%clk 0:00:40.3]}
38... Kh7 {[%clk 0:00:08.2]} 39. Ne5 {[%clk 0:00:41]} 39... Qb5 {[%clk
0:00:07.5]} 40. Qf3 {[%clk 0:00:41]} 40... c4 {[%clk 0:00:08]} 41. Nc1 {[%clk
0:00:39.6]} 41... Kg7 {[%clk 0:00:08.1]} 42. Qg3+ {[%clk 0:00:40.3]} 42... Kf8
{[%clk 0:00:08.3]} 43. Qc3 {[%clk 0:00:38.8]} 43... Rc8 {[%clk 0:00:08.6]} 44.
Qa3+ {[%clk 0:00:39.2]} 44... Kg7 {[%clk 0:00:09.2]} 45. Re3 {[%clk 0:00:38.4]}
45... Ra8 {[%clk 0:00:09.6]} 46. Rg3+ {[%clk 0:00:39.2]} 46... Kh7 {[%clk
0:00:09]} 47. Qf3 {[%clk 0:00:39.7]} 47... Rxa5 {[%clk 0:00:05.4]} 48. Qh5
{[%clk 0:00:39.7]} 48... Qe8 {[%clk 0:00:03.7]} 49. Nxf7 {[%clk 0:00:39.5]}
49... Bg7 {[%clk 0:00:03.1]} 50. Ng5+ {[%clk 0:00:39.8]} 50... Kh8 {[%clk
0:00:02.4]} 51. Qxe8+ {[%clk 0:00:40.5]} 1-0

[Event "*** Titled Tuesday Blitz"]
[Site "Chess.com"]
[Date "2018.05.01"]
[Round "8"]
[White "DrZeiss"]
[Black "Jbd735"]
[Result "1/2-1/2"]
[WhiteElo "2229"]
[BlackElo "2352"]
[TimeControl "180+2"]
[EndTime "14:50:32 PDT"]
[Termination "Game drawn by agreement"]

1. e4 {[%clk 0:03:01.9]} 1... e5 {[%clk 0:03:00.5]} 2. Nf3 {[%clk 0:03:02.2]}
2... Nc6 {[%clk 0:03:01.5]} 3. Bb5 {[%clk 0:03:01.3]} 3... a6 {[%clk 0:03:01.8]}
4. Ba4 {[%clk 0:03:01.9]} 4... Nf6 {[%clk 0:03:02.2]} 5. O-O {[%clk 0:03:02.8]}
5... Be7 {[%clk 0:03:02.6]} 6. Re1 {[%clk 0:03:03.7]} 6... b5 {[%clk 0:03:03.3]}
7. Bb3 {[%clk 0:03:04.2]} 7... d6 {[%clk 0:03:04.2]} 8. c3 {[%clk 0:03:04.6]}
8... O-O {[%clk 0:03:05]} 9. h3 {[%clk 0:03:03.2]} 9... Na5 {[%clk 0:03:05.3]}
10. Bc2 {[%clk 0:03:03.1]} 10... c5 {[%clk 0:03:05.9]} 11. d3 {[%clk 0:02:56.1]}
11... Re8 {[%clk 0:02:51.7]} 12. Nbd2 {[%clk 0:02:56.7]} 12... Bf8 {[%clk
0:02:33.1]} 13. Nf1 {[%clk 0:02:57.2]} 13... h6 {[%clk 0:02:29.9]} 14. Ng3
{[%clk 0:02:56.9]} 14... Bb7 {[%clk 0:01:59.8]} 15. Bd2 {[%clk 0:02:38]} 15...
Nc6 {[%clk 0:01:35.1]} 16. a4 {[%clk 0:02:22.2]} 16... d5 {[%clk 0:01:32.1]} 17.
Qe2 {[%clk 0:02:13.8]} 17... Qd7 {[%clk 0:01:13]} 18. Red1 {[%clk 0:01:52.8]}
18... Rad8 {[%clk 0:01:09.9]} 19. Nh2 {[%clk 0:01:50.9]} 19... Qc8 {[%clk
0:00:48.8]} 20. Qf3 {[%clk 0:01:36.5]} 20... Qe6 {[%clk 0:00:23.8]} 21. Nf5
{[%clk 0:01:19.9]} 21... c4 {[%clk 0:00:21.3]} 22. Ng4 {[%clk 0:01:06.8]} 22...
Nxg4 {[%clk 0:00:16.2]} 23. hxg4 {[%clk 0:00:59.3]} 23... cxd3 {[%clk
0:00:13.8]} 24. Bxd3 {[%clk 0:00:59.7]} 24... Ne7 {[%clk 0:00:11.3]} 25. axb5
{[%clk 0:00:53.2]} 25... dxe4 {[%clk 0:00:08]} 26. Bxe4 {[%clk 0:00:53.4]} 26...
Bxe4 {[%clk 0:00:07.1]} 27. Qxe4 {[%clk 0:00:55.1]} 27... axb5 {[%clk
0:00:07.2]} 28. Be3 {[%clk 0:00:51.3]} 28... Nxf5 {[%clk 0:00:06.4]} 29. gxf5
{[%clk 0:00:51.8]} 29... Rxd1+ {[%clk 0:00:04.5]} 30. Rxd1 {[%clk 0:00:51.4]}
30... Qb3 {[%clk 0:00:06.4]} 31. Rd2 {[%clk 0:00:51]} 31... b4 {[%clk 0:00:07]}
32. cxb4 {[%clk 0:00:43.4]} 32... Qxb4 {[%clk 0:00:06.5]} 33. Qc6 {[%clk
0:00:41.3]} 33... Rb8 {[%clk 0:00:03.6]} 34. Qd7 {[%clk 0:00:32.3]} 34... Qb5
{[%clk 0:00:03.5]} 35. f6 {[%clk 0:00:27.7]} 35... Qxd7 {[%clk 0:00:03.7]} 36.
Rxd7 {[%clk 0:00:26.7]} 36... Rxb2 {[%clk 0:00:05.1]} 37. Rd8 {[%clk 0:00:26.4]}
37... Rb1+ {[%clk 0:00:04.5]} 38. Kh2 {[%clk 0:00:26.8]} 38... Rb5 {[%clk
0:00:04.7]} 39. fxg7 {[%clk 0:00:19.1]} 39... Kxg7 {[%clk 0:00:05]} 40. Bxh6+
{[%clk 0:00:20.2]} 40... Kxh6 {[%clk 0:00:05.7]} 41. Rxf8 {[%clk 0:00:21.4]}
41... Kg7 {[%clk 0:00:06.5]} 42. Rd8 {[%clk 0:00:21.6]} 42... f6 {[%clk
0:00:07.1]} 43. f3 {[%clk 0:00:21.3]} 43... Rb2 {[%clk 0:00:07.7]} 44. Kh3
{[%clk 0:00:21.7]} 44... Kg6 {[%clk 0:00:08.6]} 45. Rf8 {[%clk 0:00:21.1]} 45...
Rb7 {[%clk 0:00:09.3]} 46. Rg8+ {[%clk 0:00:21.1]} 46... Kf7 {[%clk 0:00:09.3]}
47. Rc8 {[%clk 0:00:21.4]} 47... Rb4 {[%clk 0:00:09.7]} 48. Kg3 {[%clk
0:00:21.9]} 48... Kg6 {[%clk 0:00:10]} 49. Rc6 {[%clk 0:00:22.1]} 49... Kf5
{[%clk 0:00:10.4]} 50. Ra6 {[%clk 0:00:22.3]} 50... Rc4 {[%clk 0:00:11.1]} 51.
Rb6 {[%clk 0:00:23]} 51... Ra4 {[%clk 0:00:11.8]} 52. Rc6 {[%clk 0:00:22.5]}
1/2-1/2

[Event "*** Titled Tuesday Blitz"]
[Site "Chess.com"]
[Date "2018.05.01"]
[Round "8"]
[White "AndrewMcStone"]
[Black "FearlessKing64"]
[Result "0-1"]
[WhiteElo "2030"]
[BlackElo "2163"]
[TimeControl "180+2"]
[EndTime "14:50:39 PDT"]
[Termination "FearlessKing64 won on time"]

1. d4 {[%clk 0:03:01.9]} 1... Nf6 {[%clk 0:02:59.8]} 2. c4 {[%clk 0:03:03.2]}
2... g6 {[%clk 0:03:00.3]} 3. Nc3 {[%clk 0:03:04.5]} 3... d5 {[%clk 0:03:01.3]}
4. cxd5 {[%clk 0:03:05.3]} 4... Nxd5 {[%clk 0:03:02.1]} 5. Bd2 {[%clk
0:03:06.8]} 5... Bg7 {[%clk 0:03:03.1]} 6. e4 {[%clk 0:03:07.7]} 6... Nb6 {[%clk
0:03:04]} 7. Be3 {[%clk 0:03:08.6]} 7... O-O {[%clk 0:03:04.3]} 8. f4 {[%clk
0:03:00.4]} 8... f5 {[%clk 0:02:50.3]} 9. Qb3+ {[%clk 0:02:58.5]} 9... Kh8
{[%clk 0:02:48.6]} 10. e5 {[%clk 0:02:45.3]} 10... e6 {[%clk 0:02:47.5]} 11. Nf3
{[%clk 0:02:43.8]} 11... h6 {[%clk 0:02:47.4]} 12. O-O-O {[%clk 0:02:22.1]}
12... c6 {[%clk 0:02:44.9]} 13. h4 {[%clk 0:02:17.1]} 13... h5 {[%clk
0:02:40.6]} 14. Ng5 {[%clk 0:02:09.9]} 14... Nd5 {[%clk 0:02:38.3]} 15. Nxd5
{[%clk 0:02:10.4]} 15... cxd5 {[%clk 0:02:37.1]} 16. Kb1 {[%clk 0:02:08.6]}
16... Bd7 {[%clk 0:02:36.8]} 17. Bd3 {[%clk 0:02:09.2]} 17... Nc6 {[%clk
0:02:34.6]} 18. g4 {[%clk 0:02:01.9]} 18... Rc8 {[%clk 0:02:11.2]} 19. gxh5
{[%clk 0:01:59.8]} 19... gxh5 {[%clk 0:02:10.7]} 20. Rc1 {[%clk 0:01:46.7]}
20... Qe7 {[%clk 0:01:57]} 21. Qd1 {[%clk 0:01:42.5]} 21... Qe8 {[%clk
0:01:43.2]} 22. Be2 {[%clk 0:01:39.5]} 22... Qe7 {[%clk 0:01:30.1]} 23. Bxh5
{[%clk 0:01:34.1]} 23... Bh6 {[%clk 0:01:25.5]} 24. Be2 {[%clk 0:01:06.6]} 24...
Be8 {[%clk 0:01:22]} 25. Bb5 {[%clk 0:01:02.3]} 25... Bg6 {[%clk 0:01:16.2]} 26.
Rc5 {[%clk 0:00:47.3]} 26... Na5 {[%clk 0:01:11.8]} 27. Qc2 {[%clk 0:00:34.7]}
27... Rxc5 {[%clk 0:01:07.9]} 28. Qxc5 {[%clk 0:00:33.6]} 28... Qxc5 {[%clk
0:00:50.1]} 29. dxc5 {[%clk 0:00:34.4]} 29... Bxg5 {[%clk 0:00:51.3]} 30. hxg5+
{[%clk 0:00:33.8]} 30... Kg7 {[%clk 0:00:52.4]} 31. Bd7 {[%clk 0:00:21]} 31...
Nc4 {[%clk 0:00:47.5]} 32. Bd4 {[%clk 0:00:19.5]} 32... Bf7 {[%clk 0:00:48.8]}
33. Rh6 {[%clk 0:00:18.6]} 33... Rh8 {[%clk 0:00:36.1]} 34. Rf6 {[%clk
0:00:09.7]} 34... Nd2+ {[%clk 0:00:34.3]} 35. Kc2 {[%clk 0:00:10.3]} 35... Ne4
{[%clk 0:00:36]} 36. Rxe6 {[%clk 0:00:06.3]} 36... Rh2+ {[%clk 0:00:35.7]} 37.
Kb3 {[%clk 0:00:06.7]} 37... Nd2+ {[%clk 0:00:34.4]} 38. Kb4 {[%clk 0:00:05.2]}
38... Bxe6 {[%clk 0:00:33.5]} 39. Bxe6 {[%clk 0:00:06.9]} 39... Nc4 {[%clk
0:00:32.5]} 40. Bxd5 {[%clk 0:00:06.5]} 40... Nxb2 {[%clk 0:00:33.4]} 41. Bxb7
{[%clk 0:00:06.5]} 41... Nd3+ {[%clk 0:00:33.4]} 42. Kc4 {[%clk 0:00:07.3]}
42... Nxf4 {[%clk 0:00:33.2]} 43. c6 {[%clk 0:00:07]} 43... Ne6 {[%clk
0:00:33.5]} 44. Bc3 {[%clk 0:00:04]} 44... f4 {[%clk 0:00:27.5]} 45. Bc8 {[%clk
0:00:02.2]} 45... Nc7 {[%clk 0:00:26.4]} 0-1

[Event "*** Titled Tuesday Blitz"]
[Site "Chess.com"]
[Date "2018.05.01"]
[Round "8"]
[White "dolynachess"]
[Black "nihalsarin"]
[Result "0-1"]
[WhiteElo "2384"]
[BlackElo "2724"]
[TimeControl "180+2"]
[EndTime "14:50:41 PDT"]
[Termination "nihalsarin won by checkmate"]

1. d4 {[%clk 0:03:01.9]} 1... Nf6 {[%clk 0:02:57.3]} 2. c4 {[%clk 0:03:03]} 2...
e6 {[%clk 0:02:58.6]} 3. g3 {[%clk 0:03:02.8]} 3... c5 {[%clk 0:02:59.6]} 4. Nf3
{[%clk 0:03:00.2]} 4... cxd4 {[%clk 0:02:59.5]} 5. Nxd4 {[%clk 0:03:02]} 5... d5
{[%clk 0:03:00.9]} 6. Bg2 {[%clk 0:03:02.3]} 6... e5 {[%clk 0:03:02.2]} 7. Nc2
{[%clk 0:03:00]} 7... d4 {[%clk 0:03:02.8]} 8. O-O {[%clk 0:03:00.9]} 8... Nc6
{[%clk 0:03:04.2]} 9. e3 {[%clk 0:03:01.6]} 9... d3 {[%clk 0:03:00.7]} 10. Ne1
{[%clk 0:03:02.6]} 10... e4 {[%clk 0:03:01.9]} 11. b3 {[%clk 0:02:38.1]} 11...
Bc5 {[%clk 0:02:43.6]} 12. Bb2 {[%clk 0:02:38.4]} 12... O-O {[%clk 0:02:43.9]}
13. Nd2 {[%clk 0:02:39.5]} 13... Bg4 {[%clk 0:02:33.1]} 14. Bxf6 {[%clk
0:02:29.4]} 14... Qxf6 {[%clk 0:02:28.6]} 15. Qxg4 {[%clk 0:02:30.7]} 15... Qxa1
{[%clk 0:02:28.6]} 16. Nxe4 {[%clk 0:02:32]} 16... f5 {[%clk 0:02:22.1]} 17. Qh3
{[%clk 0:01:41]} 17... fxe4 {[%clk 0:02:20.5]} 18. Nxd3 {[%clk 0:01:18.7]} 18...
Qxf1+ {[%clk 0:02:15.5]} 19. Bxf1 {[%clk 0:01:19.1]} 19... exd3 {[%clk
0:02:17.1]} 20. Bxd3 {[%clk 0:01:20.5]} 20... g6 {[%clk 0:02:14.9]} 21. Be4
{[%clk 0:01:05.8]} 21... Rad8 {[%clk 0:02:11.9]} 22. Qe6+ {[%clk 0:00:57.3]}
22... Kg7 {[%clk 0:02:10.9]} 23. Bxc6 {[%clk 0:00:57.3]} 23... bxc6 {[%clk
0:01:50]} 24. Qe5+ {[%clk 0:00:57.9]} 24... Kg8 {[%clk 0:01:41.5]} 25. Qxc5
{[%clk 0:00:58.4]} 25... Rd1+ {[%clk 0:01:41.8]} 26. Kg2 {[%clk 0:00:58.7]}
26... Rd2 {[%clk 0:01:43.7]} 27. e4 {[%clk 0:00:52.7]} 27... Rxa2 {[%clk
0:01:44.4]} 28. h4 {[%clk 0:00:51.5]} 28... Re2 {[%clk 0:01:36.3]} 29. h5 {[%clk
0:00:43]} 29... gxh5 {[%clk 0:01:20.3]} 30. Qg5+ {[%clk 0:00:43.4]} 30... Kh8
{[%clk 0:01:21.7]} 31. Qe5+ {[%clk 0:00:44.2]} 31... Kg8 {[%clk 0:01:23]} 32.
Qg5+ {[%clk 0:00:35.7]} 32... Kh8 {[%clk 0:01:23.6]} 33. Qc5 {[%clk 0:00:31.3]}
33... Rf7 {[%clk 0:00:56.3]} 34. Qe5+ {[%clk 0:00:27.1]} 34... Kg8 {[%clk
0:00:55.3]} 35. Qe8+ {[%clk 0:00:24.2]} 35... Kg7 {[%clk 0:00:55.9]} 36. Qe5+
{[%clk 0:00:24.4]} 36... Kg6 {[%clk 0:00:54.4]} 37. Qe6+ {[%clk 0:00:25.3]}
37... Rf6 {[%clk 0:00:51.3]} 38. Qg8+ {[%clk 0:00:22.5]} 38... Kh6 {[%clk
0:00:47.7]} 39. g4 {[%clk 0:00:19.8]} 39... Rfxf2+ {[%clk 0:00:22.7]} 40. Kg1
{[%clk 0:00:20.4]} 40... Rg2+ {[%clk 0:00:23.6]} 41. Kf1 {[%clk 0:00:21.7]}
41... Rgf2+ {[%clk 0:00:19.9]} 42. Kg1 {[%clk 0:00:22.6]} 42... Rg2+ {[%clk
0:00:21.5]} 43. Kf1 {[%clk 0:00:23.5]} 43... hxg4 {[%clk 0:00:22.4]} 44. Qe6+
{[%clk 0:00:19.5]} 44... Kg5 {[%clk 0:00:23.5]} 45. Qxc6 {[%clk 0:00:20.3]}
45... Ref2+ {[%clk 0:00:21.2]} 46. Ke1 {[%clk 0:00:19.9]} 46... Rb2 {[%clk
0:00:23.1]} 47. Qd5+ {[%clk 0:00:18.8]} 47... Kf4 {[%clk 0:00:24.4]} 48. Qd6+
{[%clk 0:00:14.9]} 48... Ke3 {[%clk 0:00:22.9]} 49. Kf1 {[%clk 0:00:13.2]} 49...
Rbf2+ {[%clk 0:00:22.4]} 50. Ke1 {[%clk 0:00:14.3]} 50... Rg1# {[%clk
0:00:24.3]} 0-1